bitfinex/quotes_ETHUSD_20251019
["timestamp","ask_amount","ask_price","bid_price","bid_amount"]
[1760843372361,4.95622446,3878.4,3878.3,0.001]
[1760843372528,7.98589721,3878.7,3878.3,0.4599]
[1760843372861,1.728,3878.6,3878.3,0.4599]
[1760843373059,1.728,3878.6,3878.4,0.4589]
[1760843373269,1.728,3878.6,3878.3,0.001]
[1760843373440,1.728,3878.6,3878.4,0.4589]
[1760843373641,1.728,3878.6,3878.3,0.001]
[1760843373841,1.728,3878.6,3878.5,0.4589]
[1760843375244,1.77294348,3878.6,3878.5,0.4589]
[1760843376132,1.77294348,3878.6,3878.3,0.001]
[1760843376333,1.77294348,3878.6,3878.3,0.4742]
[1760843376534,1.77294348,3878.6,3878.4,0.4732]
[1760843377354,2.17742508,3878.6,3878.4,0.4732]
[1760843377752,2.17742508,3878.6,3878.3,0.001]
[1760843377956,0.01644375,3878.5,3878.3,0.4742]
[1760843378739,2.17742508,3878.6,3878.3,0.4742]
[1760843379764,0.01644375,3878.5,3878.3,0.4742]
[1760843379980,0.01644375,3878.5,3878.4,0.4732]
[1760843381054,0.46586883,3878.6,3878.4,0.4732]
[1760843381436,0.44942508,3878.6,3878.4,0.4732]
[1760843381640,0.4044816,3878.6,3878.4,0.4732]
[1760843384576,0.04493924,3878.6,3878.4,0.4732]
[1760843386185,0.04493924,3878.6,3878.3,0.001]
[1760843386383,0.04493924,3878.6,3878.4,0.4732]
[1760843387152,0.1288,3878.4,3878.3,0.001]
[1760843388099,0.1288,3878.4,3878.3,0.4742]
[1760843400999,0.1288,3878.4,3878.3,0.001]
[1760843401327,0.1288,3878.4,3878.3,0.4742]
[1760843401509,0.40445136,3878.5,3878.3,0.49998449]
[1760843401721,0.40445136,3878.5,3878.4,0.32821779]
[1760843401917,0.40445136,3878.5,3878.4,0.4732]
[1760843403923,0.1308,3878.6,3878.3,0.001]
[1760843404090,0.002,3878.6,3878.3,0.001]
[1760843404530,0.04693677,3878.6,3878.3,0.001]
[1760843404822,0.04693677,3878.6,3878.4,0.4504]
[1760843405117,0.04693677,3878.6,3878.5,0.4504]
[1760843406088,0.1288,3878.5,3878.3,0.001]
[1760843406314,0.04693677,3878.6,3878.3,0.001]
[1760843411925,0.48103677,3878.6,3878.3,0.001]
[1760843412296,0.04693677,3878.6,3878.3,0.001]
[1760843412824,0.04693677,3878.6,3878.4,0.4304]
[1760843413025,0.04693677,3878.6,3878.3,0.001]
[1760843413232,0.04693677,3878.6,3878.3,0.4314]
[1760843413907,0.04693677,3878.6,3878.3,0.001]
[1760843414107,0.48103677,3878.6,3878.3,0.001]
[1760843414328,0.04693677,3878.6,3878.3,0.001]
[1760843414603,1.728,3878.4,3878.3,0.001]
[1760843414926,1.74444375,3878.4,3878.3,0.001]
[1760843415109,2.17854375,3878.4,3878.3,0.001]
[1760843415314,2.1621,3878.4,3878.3,0.001]
[1760843415906,2.17854375,3878.4,3878.3,0.001]
[1760843416450,2.1621,3878.4,3878.3,0.001]
[1760843417136,2.20704364,3878.4,3878.3,0.001]
[1760843417340,2.22348739,3878.4,3878.3,0.001]
[1760843417503,2.20704364,3878.4,3878.3,0.001]
[1760843417705,2.61155634,3878.4,3878.3,0.001]
[1760843417901,2.62800009,3878.4,3878.3,0.001]
[1760843418430,5.20638292,3878.4,3878.3,0.001]
[1760843418746,5.18993917,3878.4,3878.3,0.001]
[1760843419604,2.61155634,3878.4,3878.3,0.001]
[1760843419928,2.62800009,3878.4,3878.3,0.001]
[1760843421628,0.46590009,3878.4,3878.3,0.001]
[1760843421807,7.36991456,3878.4,3878.3,0.001]
[1760843422009,7.78757081,3878.4,3878.3,0.001]
[1760843423110,7.35347081,3878.4,3878.3,0.001]
[1760843423325,7.78757081,3878.4,3878.3,0.001]
[1760843438071,7.79107081,3878.4,3878.3,0.001]
[1760843442448,7.35347081,3878.4,3878.3,0.001]
[1760843442639,7.79107081,3878.4,3878.3,0.001]
[1760843443277,2.39724635,3878.4,3878.3,0.001]
[1760843443581,7.35347081,3878.4,3878.3,0.001]
[1760843445458,6.94895811,3878.4,3878.3,0.001]
[1760843447973,1.99273365,3878.4,3878.3,0.001]
[1760843448787,2.35226738,3878.4,3878.3,0.001]
[1760843449199,2.36871113,3878.4,3878.3,0.001]
[1760843451000,2.80631113,3878.4,3878.3,0.001]
[1760843451174,2.85125304,3878.4,3878.3,0.001]
[1760843451384,2.41365304,3878.4,3878.3,0.001]
[1760843456401,2.85125304,3878.4,3878.3,0.001]
[1760843460773,2.41365304,3878.4,3878.3,0.001]
[1760843466122,2.41365304,3878.4,3878.3,0.4313]
[1760843466305,2.41365304,3878.4,3878.3,0.001]
[1760843468226,2.85125304,3878.4,3878.3,0.001]
[1760843469646,2.41365304,3878.4,3878.3,0.001]
[1760843476924,2.85125304,3878.4,3878.3,0.001]
[1760843477526,2.41365304,3878.4,3878.3,0.001]
[1760843477910,2.85125304,3878.4,3878.3,0.001]
[1760843480045,5.42963587,3878.4,3878.3,0.001]
[1760843480245,5.41319212,3878.4,3878.3,0.001]
[1760843480547,2.83480929,3878.4,3878.3,0.001]
[1760843480768,2.85125304,3878.4,3878.3,0.001]
[1760843484149,2.95467327,3878.4,3878.3,0.001]
[1760843485734,5.5330561,3878.4,3878.3,0.001]
[1760843485950,5.51661235,3878.4,3878.3,0.001]
[1760843486265,5.47167044,3878.4,3878.3,0.001]
[1760843487334,2.89328761,3878.4,3878.3,0.001]
[1760843487638,2.90973136,3878.4,3878.3,0.001]
[1760843488526,5.48811419,3878.4,3878.3,0.001]
[1760843488727,5.51661376,3878.4,3878.3,0.001]
[1760843490067,3.74367044,3878.4,3878.3,0.001]
[1760843490358,3.8050575,3878.4,3878.3,0.001]
[1760843490551,3.76011419,3878.4,3878.3,0.001]
[1760843490753,1.18173136,3878.4,3878.3,0.001]
[1760843490939,0.74413136,3878.4,3878.3,0.001]
[1760843491269,0.52434135,3878.4,3878.3,0.001]
[1760843493162,0.56928428,3878.4,3878.3,0.001]
[1760843493363,0.55284053,3878.4,3878.3,0.001]
[1760843493562,0.4494203,3878.4,3878.3,0.4635]
[1760843493733,0.4494203,3878.4,3878.3,1.1287]
[1760843494061,0.04494293,3878.4,3878.3,1.1287]
[1760843497267,0.44940137,3878.4,3878.3,1.1287]
[1760843500235,0.44940137,3878.4,3878.3,1.1235]
[1760843500644,0.44940137,3878.4,3878.3,0.6662]
[1760843501255,0.44940137,3878.4,3878.3,1.1235]
[1760843502781,0.44940137,3878.4,3878.3,0.6662]
[1760843502982,0.44940137,3878.4,3878.3,1.1235]
[1760843506261,0.44940137,3878.4,3878.3,0.6662]
[1760843507500,0.04494293,3878.4,3878.3,0.6662]
[1760843508261,0.04494293,3878.4,3878.3,1.1235]
[1760843508477,0.04494293,3878.4,3878.3,1.25632]
[1760843514509,0.04494293,3878.4,3878.3,1.1235]
[1760843514713,0.04494293,3878.4,3878.3,0.6662]
[1760843523819,9.76159397,3878.4,3878.3,0.001]
[1760843524120,10.14958425,3878.4,3878.3,0.001]
[1760843524488,10.10464132,3878.4,3878.3,0.001]
[1760843524802,10.73824132,3878.4,3878.3,0.001]
[1760843525621,5.34441686,3878.4,3878.3,0.001]
[1760843525824,10.73824132,3878.4,3878.3,0.001]
[1760843526803,10.78319241,3878.4,3878.3,0.001]
[1760843527526,11.18772781,3878.4,3878.3,0.001]
[1760843540849,10.75012781,3878.4,3878.3,0.001]
[1760843542256,10.11652781,3878.4,3878.3,0.001]
[1760843542620,7.13360958,3878.4,3878.3,0.001]
[1760843542858,10.73074132,3878.4,3878.3,0.001]
[1760843543840,10.32630729,3878.4,3878.3,0.001]
[1760843545361,10.37125806,3878.4,3878.3,0.001]
[1760843545564,10.7757879,3878.4,3878.3,0.001]
[1760843554945,10.3456879,3878.4,3878.3,0.001]
[1760843555146,10.7788879,3878.4,3878.3,0.001]
[1760843559589,10.3456879,3878.4,3878.3,0.001]
[1760843563495,5.38946344,3878.4,3878.3,0.001]
[1760843563707,10.3456879,3878.4,3878.3,0.001]
[1760843565892,2.17748061,3878.4,3878.3,0.001]
[1760843566087,7.13370507,3878.4,3878.3,0.4749]
[1760843566911,7.0887543,3878.4,3878.3,0.4749]
[1760843568585,9.66713713,3878.4,3878.3,0.4749]
[1760843569203,9.71209075,3878.4,3878.3,0.4749]
[1760843569817,7.13370792,3878.4,3878.3,0.4749]
[1760843570115,7.13370792,3878.4,3878.3,0.001]
[1760843570501,7.0887543,3878.4,3878.3,0.001]
[1760843571531,9.66713713,3878.4,3878.3,0.001]
[1760843572727,10.10033713,3878.4,3878.3,0.001]
[1760843573698,10.14529186,3878.4,3878.3,0.001]
[1760843574888,9.71209186,3878.4,3878.3,0.001]
[1760843577516,7.13370903,3878.4,3878.3,0.001]
[1760843577821,7.13370903,3878.4,3878.3,0.4749]
[1760843579794,2.17748457,3878.4,3878.3,0.001]
[1760843579999,2.17748457,3878.4,3878.3,0.4749]
[1760843580326,1.77295473,3878.4,3878.3,0.4749]
[1760843583433,2.17743507,3878.4,3878.3,0.4749]
[1760843587171,1.77295473,3878.4,3878.3,0.4749]
[1760843587370,1.77295473,3878.4,3878.3,0.001]
[1760843588853,1.77295473,3878.4,3878.3,0.4535]
[1760843590214,2.177435,3878.4,3878.3,0.4535]
[1760843591443,2.13248027,3878.4,3878.3,0.4535]
[1760843592108,2.13248027,3878.4,3878.3,0.001]
[1760843592946,2.13248027,3878.4,3878.3,0.4535]
[1760843594723,2.17742748,3878.4,3878.3,0.4535]
[1760843597430,2.17742748,3878.4,3878.3,0.001]
[1760843597849,2.62267123,3878.4,3878.3,0.001]
[1760843599146,2.19387123,3878.4,3878.3,0.001]
[1760843599346,2.62267123,3878.4,3878.3,0.001]
[1760843600341,2.19387123,3878.4,3878.3,0.001]
[1760843601163,2.19387123,3878.4,3877.8,0.399484]
[1760843601363,2.19387123,3878.4,3876.9,0.2248]
[1760843601364,2.19387123,3878.4,3877.7,0.10341275]
[1760843602077,1.78939096,3878.4,3877.7,0.10341275]
[1760843603180,1.78939096,3878.4,3877.7,0.55591275]
[1760843604176,1.78939096,3878.4,3877.8,0.001]
[1760843604372,1.78939096,3878.4,3877.8,0.55691275]
[1760843604876,1.78939096,3878.4,3877.8,0.001]
[1760843605067,2.21819096,3878.4,3877.9,0.55691275]
[1760843605265,0.4288,3878.3,3877.9,0.55691275]
[1760843609281,0.83327649,3878.3,3877.9,0.55691275]
[1760843609867,0.40447649,3878.3,3877.9,0.55691275]
[1760843610782,0.40447649,3878.3,3877.9,1.00941275]
[1760843614087,1.78939096,3878.4,3877.9,1.00941275]
[1760843614383,2.21819096,3878.4,3877.9,1.00941275]
[1760843616458,2.21819096,3878.4,3877.9,0.55691275]
[1760843616983,0.40447433,3878.3,3877.9,0.55691275]
[1760843617696,0.4446,3878.2,3877.8,0.001]
[1760843617898,0.4446,3878.2,3877.8,0.55791275]
[1760843618263,1.74444375,3878.4,3877.8,0.55791275]
[1760843618464,2.18904375,3878.4,3877.8,0.55791275]
[1760843619403,2.18904375,3878.4,3877.8,0.001]
[1760843620701,0.04494996,3878.3,3877.8,0.001]
[1760843621068,0.44943609,3878.3,3877.8,0.001]
[1760843621407,0.89403609,3878.3,3877.8,0.001]
[1760843622002,0.84908613,3878.3,3877.8,0.001]
[1760843623613,0.4446,3878.2,3877.8,0.001]
[1760843624021,0.40448613,3878.3,3877.8,0.001]
[1760843624212,0.4446,3878.2,3877.8,0.001]
[1760843626291,0.40448613,3878.3,3877.8,0.001]
[1760843626522,2.19104375,3878.4,3877.8,0.001]
[1760843626725,0.04494999,3878.2,3877.8,0.001]
[1760843627394,0.48954999,3878.2,3877.8,0.001]
[1760843628820,0.04494999,3878.2,3877.8,0.001]
[1760843629008,0.48954999,3878.2,3877.8,0.001]
[1760843629693,0.4446,3878.2,3877.8,0.001]
[1760843631006,0.84908892,3878.2,3877.8,0.001]
[1760843631409,0.40448892,3878.2,3877.8,0.001]
[1760843631631,0.4446,3878.1,3877.8,0.001]
[1760843631930,0.84908892,3878.2,3877.8,0.001]
[1760843633008,0.44943891,3878.2,3877.8,0.001]
[1760843633199,0.40448892,3878.2,3877.8,0.001]
[1760843635620,0.40448892,3878.2,3877.9,0.4731]
[1760843635826,0.40448892,3878.2,3877.9,0.57751275]
[1760843636127,0.40448892,3878.2,3878.1,0.1497]
[1760843636328,0.44943734,3878.2,3878.1,0.1497]
[1760843636534,0.44943734,3878.2,3878.1,0.6228]
[1760843636909,0.44943734,3878.2,3878.1,1.07223734]
[1760843637211,0.44943734,3878.2,3878.1,0.1497]
[1760843637413,0.1288,3878.1,3877.9,0.4731]
[1760843637615,0.44943734,3878.2,3878.0,0.44943734]
[1760843640503,0.89403734,3878.2,3878.0,0.44943734]
[1760843640902,0.44943734,3878.2,3878.0,0.44943734]
[1760843641137,0.4446,3878.1,3878.0,0.44943734]
[1760843641338,0.44943734,3878.2,3878.0,0.44943734]
[1760843641546,0.4446,3878.1,3878.0,0.44943734]
[1760843644616,0.4569,3878.1,3877.8,0.001]
[1760843644943,0.4569,3878.0,3877.8,0.001]
[1760843645333,0.4569,3877.9,3877.8,0.001]
[1760843648043,0.6594,3877.9,3877.8,0.001]
[1760843649250,0.67584375,3877.9,3877.8,0.001]
[1760843650611,1.08035372,3877.9,3877.8,0.001]
[1760843655033,1.08235372,3877.9,3877.8,0.001]
[1760843655765,1.12730589,3877.9,3877.8,0.001]
[1760843658151,0.45146214,3877.9,3877.8,0.001]
[1760843660231,0.84350997,3877.9,3877.8,0.001]
[1760843665567,0.8884619,3877.9,3877.8,0.001]
[1760843668663,0.4514619,3877.9,3877.8,0.001]
[1760843670767,0.8884619,3877.9,3877.8,0.001]
[1760843675879,3.49977718,3877.9,3877.8,0.001]
[1760843676230,4.83971096,3877.9,3877.8,0.001]
[1760843676422,2.26099568,3877.9,3877.8,0.001]
[1760843676596,2.21604375,3877.9,3877.8,0.001]
[1760843679334,2.62058333,3877.9,3877.8,0.001]
[1760843679497,2.66553894,3877.9,3877.8,0.001]
[1760843680395,5.22781047,3877.9,3877.8,0.001]
[1760843680592,2.64909519,3877.9,3877.8,0.001]
[1760843680794,2.75253414,3877.9,3877.8,0.001]
[1760843680997,5.33124942,3877.9,3877.8,0.001]
[1760843681230,5.28629381,3877.9,3877.8,0.001]
[1760843684399,5.33124957,3877.9,3877.8,0.001]
[1760843685831,2.75253429,3877.9,3877.8,0.001]
[1760843686337,5.33124957,3877.9,3877.8,0.001]
[1760843688207,2.28293429,3877.9,3877.8,0.001]
[1760843690240,2.75253429,3877.9,3877.8,0.001]
[1760843690403,2.76897804,3877.9,3877.8,0.001]
[1760843691831,2.75253429,3877.9,3877.8,0.001]
[1760843692138,2.28293429,3877.9,3877.8,0.001]
[1760843694650,2.29937804,3877.9,3877.8,0.001]
[1760843696945,2.19593909,3877.9,3877.8,0.001]
[1760843702747,2.17949534,3877.9,3877.8,0.4448]
[1760843702956,2.17949534,3877.9,3877.8,0.54821141]
[1760843703266,0.40653958,3877.9,3877.8,0.54821141]
[1760843703573,0.002,3877.9,3877.8,0.54821141]
[1760843704342,0.1308,3877.9,3877.8,0.54821141]
[1760843705772,0.1308,3877.9,3877.8,0.86370855]
[1760843706273,0.17574839,3877.9,3877.8,0.86370855]
[1760843716900,0.17574839,3877.9,3877.8,0.54821141]
[1760843720680,0.17574839,3877.9,3877.8,0.10441141]
[1760843722108,0.002,3877.9,3877.8,3.152381]
[1760843723806,0.002,3877.9,3877.8,3.76019319]
[1760843724515,0.002,3877.9,3877.8,4.88992563]
[1760843727137,0.002,3877.9,3877.8,10.49471344]
[1760843727426,0.002,3877.9,3877.8,10.46892563]
[1760843728835,0.002,3877.9,3877.8,25.04348663]
[1760843728985,0.002,3877.9,3877.8,21.67033463]
[1760843729190,0.002,3877.9,3877.8,20.12766863]
[1760843730592,0.002,3877.9,3877.8,30.93114763]
[1760843730922,0.002,3877.9,3877.8,29.54654763]
[1760843731219,0.002,3877.9,3877.8,27.51203163]
[1760843731720,0.002,3877.9,3877.8,28.89663163]
[1760843732019,0.002,3877.9,3877.8,29.02543163]
[1760843732631,0.002,3877.9,3877.8,19.75862863]
[1760843733631,0.002,3877.9,3877.8,22.60212063]
[1760843734714,0.002,3877.9,3877.8,22.60487763]
[1760843735722,0.002,3877.9,3877.8,10.59772563]
[1760843735925,0.002,3877.9,3877.8,22.60763463]
[1760843736827,0.002,3877.9,3877.8,22.61039163]
[1760843737738,0.002,3877.9,3877.8,10.59772563]
[1760843737940,0.002,3877.9,3877.8,22.61039163]
[1760843740948,0.002,3877.9,3877.8,22.80039163]
[1760843741851,0.002,3877.9,3877.8,10.59772563]
[1760843742056,0.002,3877.9,3877.8,24.01089844]
[1760843743023,0.002,3877.9,3877.8,22.74303111]
[1760843745358,1e-08,3878.3,3878.2,3.2121158]
[1760843745553,1e-08,3878.3,3878.2,10.68813699]
[1760843745750,1e-08,3878.3,3878.2,11.23375184]
[1760843745954,1e-08,3878.3,3878.2,11.33710153]
[1760843746472,1e-08,3878.3,3878.2,23.48240701]
[1760843747966,1e-08,3878.3,3878.2,30.05340701]
[1760843748356,1e-08,3878.3,3878.2,17.90810153]
[1760843748558,1e-08,3878.3,3878.2,30.05340701]
[1760843750654,1e-08,3878.3,3878.2,31.19333068]
[1760843751258,0.002,3878.7,3878.6,15.89421588]
[1760843751486,0.002,3878.7,3878.6,28.19333333]
[1760843751687,0.002,3878.7,3878.6,28.63593333]
[1760843752292,0.002,3878.7,3878.6,28.73927447]
[1760843752691,0.002,3878.7,3878.6,29.99909962]
[1760843756215,0.002,3878.7,3878.6,28.83666247]
[1760843756516,0.002,3878.7,3878.6,28.39406247]
[1760843756680,0.002,3878.7,3878.6,16.27227047]
[1760843757013,0.002,3878.7,3878.6,29.55749962]
[1760843757814,0.002,3878.7,3878.6,28.53272221]
[1760843758607,0.002,3878.7,3878.6,31.25272221]
[1760843760732,0.002,3878.7,3878.6,27.98612547]
[1760843760933,0.002,3878.7,3878.6,29.65740747]
[1760843761931,0.002,3878.7,3878.6,30.96157447]
[1760843762500,0.002,3878.7,3878.6,29.57743247]
[1760843762700,0.002,3878.7,3878.6,27.74985047]
[1760843762902,0.002,3878.7,3878.6,29.02414547]
[1760843764016,0.002,3878.7,3878.6,30.83666047]
[1760843765056,0.002,3878.7,3878.6,31.73791247]
[1760843766142,0.002,3878.7,3878.6,31.71209747]
[1760843767318,0.002,3878.7,3878.6,31.72064647]
[1760843769221,0.002,3878.7,3878.6,18.99227047]
[1760843769421,0.002,3878.7,3878.6,31.72064647]
[1760843770220,0.002,3878.7,3878.6,18.99227047]
[1760843770421,0.002,3878.7,3878.6,31.72064647]
[1760843771523,0.002,3878.7,3878.6,31.87760547]
[1760843772426,0.002,3878.7,3878.6,31.61261766]
[1760843778561,0.002,3878.7,3878.6,18.99227047]
[1760843778756,0.002,3878.7,3878.6,31.61261766]
[1760843779684,0.002,3878.7,3878.6,31.85110054]
[1760843781181,0.002,3878.7,3878.6,31.18441647]
[1760843781685,0.002,3878.7,3878.6,31.85110054]
[1760843783683,0.002,3878.7,3878.6,18.99227047]
[1760843783876,0.002,3878.7,3878.6,31.85110054]
[1760843785770,0.002,3878.7,3878.6,18.99227047]
[1760843785965,0.002,3878.7,3878.6,31.85110054]
[1760843786990,0.002,3878.7,3878.6,32.29590054]
[1760843787376,0.002,3879.0,3878.6,31.85110054]
[1760843787562,1e-08,3879.1,3879.0,28.47042501]
[1760843787893,1e-08,3879.1,3879.0,37.51386847]
[1760843788059,1e-08,3879.1,3879.0,37.61719066]
[1760843788259,1e-08,3879.1,3879.0,44.54547019]
[1760843788863,1e-08,3879.1,3879.0,45.06116879]
[1760843789708,1e-08,3879.1,3879.0,41.21016879]
[1760843792415,1e-08,3879.1,3879.0,29.5013098]
[1760843794716,1e-08,3879.1,3879.0,32.30092579]
[1760843794884,1e-08,3879.1,3879.0,30.42586279]
[1760843795619,1e-08,3879.1,3879.0,34.27967979]
[1760843796113,1e-08,3879.1,3879.0,33.45102579]
[1760843796722,1e-08,3879.1,3879.0,33.99571479]
[1760843797612,1e-08,3879.1,3879.0,38.81522379]
[1760843798695,1e-08,3879.5,3879.4,22.03008266]
[1760843798898,1e-08,3879.5,3879.4,23.53000366]
[1760843799502,1e-08,3879.5,3879.4,24.00280366]
[1760843799899,1e-08,3879.5,3879.4,27.85380366]
[1760843800245,1e-08,3879.5,3879.4,7.5351182]
[1760843800426,0.47280001,3879.5,3879.4,20.13328336]
[1760843800624,0.47280001,3879.5,3879.4,18.86300136]
[1760843801502,0.47280001,3879.5,3879.4,21.31154536]
[1760843802724,0.47280001,3879.5,3879.4,21.29428336]
[1760843803899,0.47280001,3879.5,3879.4,21.30614236]
[1760843804830,0.47280001,3879.5,3879.4,21.29428336]
[1760843805837,0.47280001,3879.5,3879.4,16.52558336]
[1760843806039,0.47280001,3879.5,3879.4,21.30792336]
[1760843807140,0.47280001,3879.5,3879.4,21.29428336]
[1760843808142,0.47280001,3879.5,3879.4,16.52558336]
[1760843808312,0.47280001,3879.5,3879.4,23.47312636]
[1760843808721,0.47280001,3879.5,3879.4,23.60192636]
[1760843809243,0.47280001,3879.5,3879.4,16.65438336]
[1760843809442,0.47280001,3879.5,3879.4,23.59928936]
[1760843809741,0.47280001,3879.5,3879.4,23.05949436]
[1760843809943,0.47280001,3879.5,3879.4,20.14912436]
[1760843810414,0.47280001,3879.5,3879.4,16.65438336]
[1760843810614,0.47280001,3879.5,3879.4,22.42943636]
[1760843811563,0.47280001,3879.5,3879.4,22.41508336]
[1760843812556,0.47280001,3879.5,3879.4,16.65438336]
[1760843812852,0.47280001,3879.5,3879.4,22.56037436]
[1760843813755,0.47280001,3879.5,3879.4,22.56073236]
[1760843814850,1e-08,3879.5,3879.4,23.24343236]
[1760843815355,1e-08,3879.5,3879.4,22.25143236]
[1760843817442,1e-08,3879.5,3879.4,21.55408336]
[1760843823430,1e-08,3879.5,3879.4,21.55508336]
[1760843828380,0.002,3879.8,3879.4,21.55508336]
[1760843828381,0.002,3879.8,3879.7,5.93111888]
[1760843828582,0.002,3879.8,3879.7,32.81563178]
[1760843828879,0.002,3880.3,3880.1,5.93085316]
[1760843829048,0.002,3880.3,3880.1,41.33707462]
[1760843829247,0.002,3880.3,3880.1,15.97967762]
[1760843829476,0.002,3880.3,3880.1,35.8902041]
[1760843829679,0.002,3880.3,3880.1,38.52268363]
[1760843830250,0.002,3880.3,3880.1,38.64917651]
[1760843832480,0.002,3880.3,3880.2,20.43395203]
[1760843832652,0.002,3880.3,3880.2,20.86385203]
[1760843832952,0.002,3880.3,3880.2,23.33015384]
[1760843833465,0.002,3880.3,3880.2,16.94257119]
[1760843833682,0.002,3880.3,3880.2,16.51267119]
[1760843833884,0.002,3880.3,3880.2,15.46842155]
[1760843834496,0.002,3880.3,3880.2,16.51267119]
[1760843836720,0.002,3880.3,3880.2,17.07137119]
[1760843839122,0.002,3880.3,3880.2,17.17465336]
[1760843839720,0.002,3880.3,3880.2,29.25405876]
[1760843840220,0.002,3880.3,3880.2,25.36525872]
[1760843840424,0.002,3880.3,3880.2,20.20785272]
[1760843840621,0.4318,3880.3,3880.2,20.20785272]
[1760843840815,0.002,3880.3,3880.2,23.13002472]
[1760843841825,0.002,3880.3,3880.2,27.61750572]
[1760843842714,0.002,3880.3,3880.2,31.46850572]
[1760843842898,0.002,3880.3,3880.2,33.87152772]
[1760843843229,0.002,3880.3,3880.2,32.63379272]
[1760843843725,0.002,3880.3,3880.2,32.43231372]
[1760843844130,0.002,3880.3,3880.2,28.58131372]
[1760843844799,0.002,3880.3,3880.2,30.81662672]
[1760843845925,0.002,3880.3,3880.2,29.77983072]
[1760843846130,0.002,3880.3,3880.2,28.69313072]
[1760843846997,0.002,3880.3,3880.2,28.78387072]
[1760843848134,0.002,3880.3,3880.2,22.90755779]
[1760843849015,0.002,3880.3,3880.2,12.94517072]
[1760843849225,0.002,3880.3,3880.2,22.90755779]
[1760843851043,0.002,3880.3,3880.2,20.31955779]
[1760843851248,0.002,3880.3,3880.2,22.90755779]
[1760843852244,0.002,3880.3,3880.2,17.54668872]
[1760843852442,0.4318,3880.3,3880.2,20.13468872]
[1760843853224,0.4318,3880.3,3880.2,22.90755779]
[1760843853748,0.002,3880.3,3880.2,22.90755779]
[1760843855356,0.4364,3880.3,3880.2,28.19610313]
[1760843855542,0.4364,3880.3,3880.2,26.51496772]
[1760843855747,0.4364,3880.3,3880.2,25.53283472]
[1760843856253,0.4364,3880.3,3880.2,16.79617072]
[1760843856430,0.002,3880.7,3880.2,16.79617072]
[1760843856431,0.002,3880.7,3880.6,10.443936]
[1760843856642,0.002,3880.7,3880.6,21.25341945]
[1760843856841,0.002,3880.7,3880.6,21.38221945]
[1760843857071,0.002,3880.7,3880.6,24.39354054]
[1760843857243,0.002,3880.7,3880.6,29.83413695]
[1760843858651,0.002,3880.7,3880.6,32.55413695]
[1760843858856,0.002,3880.7,3880.6,33.02683695]
[1760843862168,0.002,3880.7,3880.6,32.55413695]
[1760843862374,0.002,3880.7,3880.6,27.79456877]
[1760843863970,0.002,3880.7,3880.6,28.13846877]
[1760843864195,0.002,3880.7,3880.6,28.26726877]
[1760843866090,0.002,3880.9,3880.8,28.64111676]
[1760843866289,0.002,3881.1,3881.0,12.61447996]
[1760843866486,0.002,3881.1,3881.0,25.69284419]
[1760843866687,0.002,3881.1,3881.0,26.39760637]
[1760843867797,0.002,3881.8,3881.3,5.93005634]
[1760843868090,0.002,3881.8,3881.3,33.98906434]
[1760843868456,0.002,3881.8,3881.3,34.09231692]
[1760843869593,0.4364,3881.8,3881.3,34.09231692]
[1760843870295,0.4364,3881.8,3881.3,34.61395555]
[1760843874901,0.002,3881.8,3881.3,34.61395555]
[1760843875199,0.002,3881.8,3881.3,35.08665555]
[1760843876299,0.002,3881.8,3881.3,34.61395555]
[1760843877094,0.002,3881.8,3881.3,35.08665555]
[1760843878301,0.002,3882.2,3882.1,5.9295254]
[1760843878506,1.23034393,3886.5,3882.1,5.9295254]
[1760843878507,0.103231,3886.1,3882.8,3.3536]
[1760843878679,0.40389409,3885.2,3883.9,0.6336]
[1760843878879,0.40389409,3885.2,3884.0,3.20826529]
[1760843879084,0.40389409,3885.2,3884.0,0.6336]
[1760843879298,0.40389409,3885.2,3884.0,3.20826529]
[1760843879495,0.40389409,3885.2,3884.0,3.61215938]
[1760843880515,0.3174,3884.1,3884.0,3.61215938]
[1760843886425,0.3152,3885.9,3884.9,3.20766883]
[1760843886627,1.60376394,3886.0,3884.9,3.23340951]
[1760843886628,1.2,3886.0,3884.9,3.23340951]
[1760843886833,0.3174,3885.0,3884.9,3.23340951]
[1760843887739,0.3174,3885.0,3884.9,0.6336]
[1760843888105,0.3174,3885.0,3884.9,8.18963397]
[1760843888306,0.3174,3885.0,3884.9,6.87159652]
[1760843888502,0.3174,3885.0,3884.6,0.6336]
[1760843888761,0.099,3884.9,3884.8,2.57413509]
[1760843889054,0.099,3884.9,3884.8,3.20773509]
[1760843890116,0.2184,3885.0,3884.9,3.20766883]
[1760843890926,0.3174,3885.0,3884.5,0.77391893]
[1760843891126,0.099,3884.9,3884.1,4.30253517]
[1760843891326,0.2204,3885.0,3883.8,4.95622446]
[1760843891327,0.099,3884.8,3884.2,1.20423634]
[1760843891526,0.099,3884.7,3884.6,0.6336]
[1760843891731,0.099,3884.7,3884.5,2.57428473]
[1760843891943,0.2204,3885.0,3884.6,4.95622446]
[1760843892127,0.099,3884.9,3884.8,3.20773509]
[1760843892335,0.099,3884.9,3884.8,1.70742235]
[1760843892536,0.099,3884.9,3884.8,4.28155744]
[1760843893016,0.2204,3885.0,3884.9,3.20766883]
[1760843893748,0.3194,3885.0,3884.9,3.20766883]
[1760843894467,0.2204,3885.0,3884.9,3.20766883]
[1760843894637,0.2204,3885.0,3884.9,4.3888539]
[1760843894969,0.002,3885.0,3884.9,4.3888539]
[1760843895354,0.002,3885.0,3884.9,4.41459458]
[1760843896267,0.002,3885.0,3884.9,4.85439458]
[1760843896463,0.002,3885.0,3884.9,4.8286539]
[1760843896668,0.002,3885.0,3884.9,4.3888539]
[1760843897970,0.002,3885.0,3884.9,4.41459458]
[1760843898355,0.002,3885.0,3884.9,4.3888539]